[Event "Wuerttemberg Rapid Teams 2024"]
[Site "B?blingen, Germany"]
[Date "2024.04.13"]
[Round "2.10"]
[White "Hartmann, Martin"]
[Black "Vujic, Branimir"]
[Result "0-1"]
[ECO "B02"]
[WhiteElo "2158"]
[BlackElo "2218"]
[Annotator "RC"]
[PlyCount "152"]
[EventDate "2024.04.13"]
[EventType "team-tourn"]
[SourceTitle "playchess.com"]
[Source "ChessBase"]
[SourceQuality "1"]
[TimeControl "900+5"]

1. e4 {[%emt 0:00:06]} d5 {[%emt 0:00:01]} 2. exd5 {[%emt 0:00:08]} Nf6 {[%emt 0:00:01]} 3. Nc3 {[%emt 0:00:02]} Nxd5 {[%emt 0:00:02]} 4. Bc4 {[%emt 0:00:05]} Nb6 {[%emt 0:00:01]} 5. Bb3 {[%emt 0:00:01]} c5 {[%emt 0:00:02]} 6. d3 {[%emt 0:00:05]} e6 {[%emt 0:00:00]} 7. Nf3 {[%emt 0:00:26]} Be7 {[%emt 0:00:07]} 8. Bf4 {[%emt 0:00:10]} O-O {[%emt 0:00:10]} 9. O-O {[%emt 0:00:03]} N8d7 {[%emt 0:00:00]} 10. Nb5 {[%emt 0:01:01]} a6 {[%emt 0:01:18]} 11. Bc7 {[%emt 0:01:32]} Qe8 {[%emt 0:00:02]} 12. Nd6 {[%emt 0:00:02]} Bxd6 {[%emt 0:00:03]} 13. Bxd6 {[%emt 0:00:01]} Nf6 {[%emt 0:00:04]} 14. Re1 {[%emt 0:00:09]} Nbd5 {[%emt 0:00:11]} 15. Bxf8 {[%emt 0:00:21]} Qxf8 {[%emt 0:00:03]} 16. Qd2 {[%emt 0:00:05]} b6 {[%emt 0:00:02]} 17. d4 {[%emt 0:01:38]} Bb7 {[%emt 0:00:02]} 18. Rad1 {[%emt 0:00:15]} Nb4 {[%emt 0:00:44]} 19. Ne5 {[%emt 0:00:22]} Rd8 {[%emt 0:00:10]} 20. c3 {[%emt 0:00:08]} Nc6 {[%emt 0:00:07]} 21. Nxf7 {[%emt 0:00:04]} Kxf7 {[%emt 0:00:15]} 22. Bxe6+ {[%emt 0:00:06]} Kg6 {[%emt 0:00:04]} 23. Re3 {[%emt 0:00:54]} h5 {[%emt 0:00:38]} 24. d5 {[%emt 0:05:21]} Ne7 {[%emt 0:01:43]} 25. c4 {[%emt 0:00:01]} Bc8 {[%emt 0:00:10]} 26. Qc2+ {[%emt 0:00:28]} Kh6 {[%emt 0:00:09]} 27. Rde1 {[%emt 0:00:08]} b5 {[%emt 0:00:16]} 28. b3 {[%emt 0:00:02]} bxc4 {[%emt 0:00:03]} 29. bxc4 {[%emt 0:00:01]} Bxe6 {[%emt 0:00:07]} 30. Rxe6 {[%emt 0:00:02]} Ng6 {[%emt 0:00:03]} 31. Rxa6 {[%emt 0:00:14]} Rd6 {[%emt 0:00:09]} 32. Re6 {[%emt 0:00:23]} Rxa6 {[%emt 0:00:33]} 33. Rxa6 {[%emt 0:00:02]} Qc8 {[%emt 0:00:01]} 34. Rc6 {[%emt 0:00:11]} Qg4 {[%emt 0:00:08]} 35. Qd2+ {[%emt 0:00:38]} Kh7 {[%emt 0:00:19]} 36. f3 {[%emt 0:00:24]} Qxc4 {[%emt 0:00:15]} 37. d6 {[%emt 0:00:01]} Ne5 {[%emt 0:00:28]} 38. Rc7 {[%emt 0:00:18]} Nd3 {[%emt 0:00:47]} 39. Qe3 {[%emt 0:00:07]} Qc2 {[%emt 0:04:02]} 40. h3 {[%emt 0:00:07]} Qd1+ {[%emt 0:00:02]} 41. Kh2 {[%emt 0:00:01]} Ne1 {[%emt 0:00:50]} 42. Qe5 {[%emt 0:00:59]} Qd2 {[%emt 0:00:35]} 43. Qg3 {[%emt 0:00:01]} Ne8 {[%emt 0:00:40]} 44. Rd7 {[%emt 0:00:24]} c4 {[%emt 0:00:29]} 45. Kh1 {[%emt 0:00:51]} c3 {[%emt 0:01:39]} 46. Re7 {[%emt 0:00:01]} c2 {[%emt 0:00:03]} 47. Rxe1 {[%emt 0:00:02]} c1=Q {[%emt 0:00:07]} 48. Rxc1 {[%emt 0:00:02]} Qxc1+ {[%emt 0:00:01]} 49. Kh2 {[%emt 0:00:01]} Qc6 {[%emt 0:00:10]} 50. f4 {[%emt 0:00:25]} Qxd6 {[%emt 0:00:04]} 51. Qf2 {[%emt 0:00:07]} Nf6 {[%emt 0:00:05]} 52. g3 {[%emt 0:00:01]} Qa3 {[%emt 0:00:06]} 53. Qc2+ {[%emt 0:00:02]} Kh6 {[%emt 0:00:12]} 54. Kg2 {[%emt 0:00:01]} Qe3 {[%emt 0:00:07]} 55. Qf2 {[%emt 0:00:08]} Qd3 {[%emt 0:00:03]} 56. Qf3 {[%emt 0:00:03]} Qd2+ {[%emt 0:00:07]} 57. Qf2 {[%emt 0:00:00]} Qd5+ {[%emt 0:00:01]} 58. Qf3 {[%emt 0:00:02]} Qxa2+ {[%emt 0:00:01]} 59. Qf2 {[%emt 0:00:01]} Qd5+ {[%emt 0:00:01]} 60. Qf3 {[%emt 0:00:14]} Qd2+ {[%emt 0:00:04]} 61. Qf2 {[%emt 0:00:01]} Qxf2+ {[%emt 0:00:02]} 62. Kxf2 {[%emt 0:00:01]} Kg6 {[%emt 0:00:03]} 63. Ke3 {[%emt 0:00:03]} Kf5 {[%emt 0:00:04]} 64. Kf3 {[%emt 0:00:01]} g6 {[%emt 0:00:37]} 65. Ke3 {[%emt 0:00:01]} Ke6 {[%emt 0:00:01]} 66. Kf3 {[%emt 0:00:20]} Nd5 {[%emt 0:00:03]} 67. Ke4 {[%emt 0:00:03]} Nc3+ {[%emt 0:00:01]} 68. Kf3 {[%emt 0:00:02]} Nb5 {[%emt 0:00:03]} 69. Ke4 {[%emt 0:00:02]} Nd6+ {[%emt 0:00:08]} 70. Kf3 {[%emt 0:00:02]} Kf6 {[%emt 0:00:01]} 71. Ke3 {[%emt 0:00:06]} Nb5 {[%emt 0:00:01]} 72. Ke4 {[%emt 0:00:03]} Ke6 {[%emt 0:00:01]} 73. Kf3 {[%emt 0:00:02]} Kd5 {[%emt 0:00:11]} 74. g4 {[%emt 0:00:08]} h4 {[%emt 0:00:02]} 75. g5 {[%emt 0:00:00]} Nd4+ {[%emt 0:00:01]} 76. Kg4 {[%emt 0:00:02]} Nf5 {[%emt 0:00:01]} 0-1

[Event "Wuerttemberg Rapid Teams 2024"]
[Site "B?blingen, Germany"]
[Date "2024.04.13"]
[Round "2.11"]
[White "Schuh, Karsten"]
[Black "Freiherr von Hauff, Christopher"]
[Result "0-1"]
[ECO "A24"]
[WhiteElo "2133"]
[BlackElo "1960"]
[Annotator "RC"]
[PlyCount "70"]
[EventDate "2024.04.13"]
[EventType "team-tourn"]
[SourceTitle "playchess.com"]
[Source "ChessBase"]
[SourceQuality "1"]
[TimeControl "900+5"]

1. c4 {[%emt 0:00:02]} d6 {[%emt 0:00:03]} 2. g3 {[%emt 0:00:02]} Nf6 {[%emt 0:00:16]} 3. Bg2 {[%emt 0:00:01]} g6 {[%emt 0:00:01]} 4. Nc3 {[%emt 0:00:02]} Bg7 {[%emt 0:00:01]} 5. Nf3 {[%emt 0:00:02]} e5 {[%emt 0:00:06]} 6. O-O {[%emt 0:00:06]} O-O {[%emt 0:00:03]} 7. Rb1 {[%emt 0:00:07]} a5 {[%emt 0:00:24]} 8. a3 {[%emt 0:00:05]} c6 {[%emt 0:01:02]} 9. d3 {[%emt 0:00:07]} Nh5 {[%emt 0:00:15]} 10. b4 {[%emt 0:00:44]} axb4 {[%emt 0:00:36]} 11. axb4 {[%emt 0:00:02]} f5 {[%emt 0:00:01]} 12. Qb3 {[%emt 0:00:02]} Kh8 {[%emt 0:00:34]} 13. b5 {[%emt 0:00:55]} Be6 {[%emt 0:04:25]} 14. Ng5 {[%emt 0:02:12]} Bg8 {[%emt 0:00:07]} 15. bxc6 {[%emt 0:00:02]} bxc6 {[%emt 0:00:54]} 16. Qb7 {[%emt 0:01:36]} Qa5 {[%emt 0:00:38]} 17. Bd2 {[%emt 0:00:02]} Ra7 {[%emt 0:02:11]} 18. Qb3 {[%emt 0:00:03]} Nd7 {[%emt 0:00:39]} 19. Bxc6 {[%emt 0:00:58]} Nc5 {[%emt 0:00:02]} 20. Qc2 {[%emt 0:00:01]} h6 {[%emt 0:00:58]} 21. Nf3 {[%emt 0:00:08]} Qc7 {[%emt 0:00:15]} 22. Bd5 {[%emt 0:00:06]} Bh7 {[%emt 0:00:13]} 23. Nb5 {[%emt 0:00:03]} Qe7 {[%emt 0:00:09]} 24. Nxa7 {[%emt 0:00:15]} Qxa7 {[%emt 0:00:01]} 25. Be3 {[%emt 0:01:10]} f4 {[%emt 0:00:15]} 26. Bxc5 {[%emt 0:01:21]} Qxc5 {[%emt 0:00:02]} 27. Rb5 {[%emt 0:00:01]} Qc8 {[%emt 0:00:42]} 28. Nd2 {[%emt 0:01:39]} g5 {[%emt 0:00:45]} 29. Rfb1 {[%emt 0:00:55]} fxg3 {[%emt 0:00:45]} 30. fxg3 {[%emt 0:02:16]} e4 {[%emt 0:00:00]} 31. dxe4 {[%emt 0:01:18]} Bd4+ {[%emt 0:00:02]} 32. Kh1 {[%emt 0:00:01]} Nxg3+ {[%emt 0:00:08]} 33. Kg2 {[%emt 0:00:06]} Nxe2 {[%emt 0:00:03]} 34. Qd3 {[%emt 0:00:16]} Nf4+ {[%emt 0:00:01]} 35. Kh1 {[%emt 0:00:02]} Nxd3 {[%emt 0:00:01]} 0-1

[Event "Wuerttemberg Rapid Teams 2024"]
[Site "B?blingen, Germany"]
[Date "2024.04.13"]
[Round "2.12"]
[White "Deubel, Silas"]
[Black "Schuh, Bernd-Martin"]
[Result "0-1"]
[ECO "D40"]
[WhiteElo "1851"]
[BlackElo "1976"]
[Annotator "TA"]
[PlyCount "40"]
[EventDate "2024.04.13"]
[EventType "team-tourn"]
[SourceTitle "playchess.com"]
[Source "ChessBase"]
[SourceQuality "1"]
[TimeControl "900+5"]

{[%evp 10,40,6,-41,-36,-36,-21,-94,-100,-100,-47,-92,0,0,0,-80,-81,-309,-135,-150,-36,-35,-37,-108,-102,-140,-145,-234,-170,-177,-172,-29990,-1767]} 1. Nf3 {[%emt 0:00:04]} c5 {[%emt 0:00:03]} 2. e3 {[%emt 0:00:05]} Nc6 {[%emt 0:00:07]} 3. c4 {[%emt 0:00:04]} Nf6 {[%emt 0:00:04]} 4. Nc3 {[%emt 0:00:14]} e6 {[%emt 0:00:28]} 5. d4 {[%emt 0:00:14]} d5 {[%emt 0:00:07]} 6. b3 {[%emt 0:00:39]} (6. a3 $11 {might be stronger.}) 6... cxd4 $15 {[%emt 0:00:06]} 7. Nxd4 {[%emt 0:00:09]} Bb4 {[%emt 0:00:10]} 8. Bd2 {[%emt 0:00:36]} (8. Bb2 $11) 8... Nxd4 $17 {[%emt 0:00:07] Black is better.} 9. exd4 {[%emt 0:00:03]} O-O {[%emt 0:00:07]} (9... dxc4 $17 10. Bxc4 Qxd4) 10. c5 {[%emt 0:00:13]} Bxc3 {[%emt 0:00:17]} ({Black should play} 10... e5 $1 $17 {Threatens to win with ...Qa5.} 11. dxe5 Re8) 11. Bxc3 $11 {[%emt 0:00:02]} Ne4 {[%emt 0:00:02]} 12. Qd3 {[%emt 0:00:38]} (12. Rc1 $11 {remains equal.}) 12... b6 $17 {[%emt 0:00:18]} 13. Bb4 $2 {[%emt 0:01:49] [#]} (13. c6 $17 {might work better.}) 13... a5 {[%emt 0:00:06]} (13... Qf6 $19 {has better winning chances.} 14. f3 Qh4+ 15. g3 Nxg3 16. hxg3 Qxh1) 14. Ba3 {[%emt 0:00:29]} Ba6 {[%emt 0:00:02]} (14... bxc5 $17 {White must now prevent ...a4.} 15. Bxc5 Qh4) 15. Qc2 $1 $15 {[%emt 0:03:02]} Bxf1 {[%emt 0:00:19]} 16. Kxf1 {[%emt 0:00:15]} (16. Rxf1 $15 Rc8 17. f3) 16... bxc5 $17 {[%emt 0:00:35][%cal Oa5a4] Black is more active.} 17. f3 {[%emt 0:00:12]} Qf6 $36 {[%emt 0:00:30][%cal Oa5a4][%mdl 2048] ...a4! would now be deadly. Black is in control.} 18. Ke2 {[%emt 0:01:30] [#]} (18. Ke1 $17 Qh4+ (18... Qxd4 $2 19. Rc1 $19) 19. g3 Nxg3 20. Qf2) 18... Qg6 $1 {[%emt 0:00:42]} 19. fxe4 {[%emt 0:02:32]} Qxg2+ {[%emt 0:00:06]} 20. Ke3 $2 {[%emt 0:00:41]} (20. Kd3 $19 dxe4+ (20... Qxe4+ $2 21. Kd2 $17) 21. Kc3 cxd4+ 22. Kb2 Qxc2+ 23. Kxc2) 20... Qxc2 {[%emt 0:00:05] Weighted Error Value: White=1.00/Black=0.46.  Loses game:     	White=1     	---        Missed win:     	---       	Black=1      Mistake:       	White=5     	Black=4      Inaccurate:     	White=2     	---        OK:         	White=1     	Black=6      Best:        	White=1     	Black=2      Strong:       	White=1     	---} (20... cxd4+ $142 21. Kxd4 Qxc2 22. Rhe1 Qd2+ 23. Ke5 f6+ (23... Qxh2+ {is a self mate.} 24. Kd4 Qd2+ 25. Ke5 f6+ 26. Kxe6 Rfe8+ 27. Kd7 Qc3 28. Be7 Ra7+ 29. Kd6 Rexe7 30. Kxd5 Rad7#) 24. Kxe6 Rfe8+ 25. Be7 Ra6+ (25... Qxh2 {leads to mate.} 26. exd5 Rad8 27. Kf5 Rxd5+ 28. Re5 Rd4 29. Re4 Qh3+ 30. Kf4 g5#) 26. Kd7 dxe4+ 27. Bd6 Qxd6+ 28. Kxe8 Ra8#) 0-1

[Event "Wuerttemberg Rapid Teams 2024"]
[Site "B?blingen, Germany"]
[Date "2024.04.13"]
[Round "2.13"]
[White "Gabriel, Robert"]
[Black "Zuferi, Enis"]
[Result "0-1"]
[ECO "D38"]
[WhiteElo "2161"]
[BlackElo "2406"]
[Annotator "RC"]
[PlyCount "82"]
[EventDate "2024.04.13"]
[EventType "team-tourn"]
[SourceTitle "playchess.com"]
[Source "ChessBase"]
[SourceQuality "1"]
[TimeControl "900+5"]

1. d4 {[%emt 0:00:04]} Nf6 {[%emt 0:00:01]} 2. Nf3 {[%emt 0:00:06]} d5 {[%emt 0:00:02]} 3. c4 {[%emt 0:00:08]} e6 {[%emt 0:00:01]} 4. Nc3 {[%emt 0:00:09]} Bb4 {[%emt 0:00:02]} 5. Bg5 {[%emt 0:00:14]} h6 {[%emt 0:00:02]} 6. Bxf6 {[%emt 0:00:07]} Qxf6 {[%emt 0:00:02]} 7. e3 {[%emt 0:00:11]} O-O {[%emt 0:00:14]} 8. Rc1 {[%emt 0:00:09]} Rd8 {[%emt 0:01:50]} 9. a3 {[%emt 0:00:21]} Bf8 {[%emt 0:01:49]} 10. Be2 {[%emt 0:00:48]} dxc4 {[%emt 0:00:11]} 11. O-O {[%emt 0:00:13]} c5 {[%emt 0:00:04]} 12. Bxc4 {[%emt 0:00:32]} cxd4 {[%emt 0:00:30]} 13. exd4 {[%emt 0:00:04]} Nc6 {[%emt 0:00:01]} 14. d5 {[%emt 0:00:36]} exd5 {[%emt 0:02:31]} 15. Nxd5 {[%emt 0:00:13]} Qxb2 {[%emt 0:00:23]} 16. Rc2 {[%emt 0:01:42]} Qxa3 {[%emt 0:00:22]} 17. Rc3 {[%emt 0:00:21]} Qxc3 {[%emt 0:00:19]} 18. Nxc3 {[%emt 0:00:04]} Rxd1 {[%emt 0:00:01]} 19. Rxd1 {[%emt 0:00:02]} Bg4 {[%emt 0:00:25]} 20. h3 {[%emt 0:00:21]} Bxf3 {[%emt 0:01:16]} 21. gxf3 {[%emt 0:00:03]} Rd8 {[%emt 0:00:01]} 22. Rxd8 {[%emt 0:00:07]} Nxd8 {[%emt 0:00:01]} 23. Kg2 {[%emt 0:00:30]} Ne6 {[%emt 0:00:12]} 24. Ne2 {[%emt 0:00:38]} Bd6 {[%emt 0:00:58]} 25. h4 {[%emt 0:00:14]} Kf8 {[%emt 0:00:45]} 26. h5 {[%emt 0:00:06]} Ke7 {[%emt 0:00:20]} 27. Kh3 {[%emt 0:00:05]} a6 {[%emt 0:00:17]} 28. Kg4 {[%emt 0:00:06]} b5 {[%emt 0:00:05]} 29. Bd3 {[%emt 0:00:20]} Nc5 {[%emt 0:00:07]} 30. Bc2 {[%emt 0:00:05]} Be5 {[%emt 0:00:14]} 31. f4 {[%emt 0:00:08]} Bf6 {[%emt 0:00:06]} 32. f5 {[%emt 0:00:14]} a5 {[%emt 0:00:24]} 33. Nf4 {[%emt 0:00:06]} b4 {[%emt 0:01:25]} 34. Nd5+ {[%emt 0:00:31]} Kd6 {[%emt 0:00:09]} 35. Nb6 {[%emt 0:00:55]} b3 {[%emt 0:00:20]} 36. Bd1 {[%emt 0:00:24]} b2 {[%emt 0:00:51]} 37. Bc2 {[%emt 0:00:26]} Kc6 {[%emt 0:00:24]} 38. Nc4 {[%emt 0:00:14]} Kb5 {[%emt 0:00:10]} 39. Nd2 {[%emt 0:00:13]} Kb4 {[%emt 0:00:03]} 40. Nb1 {[%emt 0:00:05]} a4 {[%emt 0:00:02]} 41. Nd2 {[%emt 0:00:29]} Kc3 {[%emt 0:00:06]} 0-1

[Event "Wuerttemberg Rapid Teams 2024"]
[Site "B?blingen, Germany"]
[Date "2024.04.13"]
[Round "2.14"]
[White "Huber, Philipp"]
[Black "Gabriel, Josef"]
[Result "1-0"]
[ECO "A41"]
[WhiteElo "2306"]
[BlackElo "1997"]
[Annotator "RC"]
[PlyCount "37"]
[EventDate "2024.04.13"]
[EventType "team-tourn"]
[SourceTitle "playchess.com"]
[Source "ChessBase"]
[SourceQuality "1"]
[TimeControl "900+5"]

1. d4 {[%emt 0:00:02]} d6 {[%emt 0:00:01]} 2. Bg5 {[%emt 0:00:02]} g6 {[%emt 0:00:04]} 3. h4 {[%emt 0:00:16]} h5 {[%emt 0:00:07]} 4. e3 {[%emt 0:00:25]} Bg7 {[%emt 0:00:14]} 5. Bd3 {[%emt 0:00:16]} c5 {[%emt 0:00:19]} 6. c3 {[%emt 0:00:03]} Nc6 {[%emt 0:00:01]} 7. Nd2 {[%emt 0:00:12]} Nf6 {[%emt 0:00:04]} 8. Ne2 {[%emt 0:00:18]} O-O {[%emt 0:00:23]} 9. Nf4 {[%emt 0:00:31]} cxd4 {[%emt 0:00:26]} 10. exd4 {[%emt 0:00:22]} e5 {[%emt 0:00:35]} 11. Nd5 {[%emt 0:00:21]} exd4 {[%emt 0:00:27]} 12. Ne4 {[%emt 0:00:05]} Re8 {[%emt 0:00:33]} 13. O-O {[%emt 0:00:09]} Rxe4 {[%emt 0:01:11]} 14. Bxe4 {[%emt 0:00:02]} dxc3 {[%emt 0:00:01]} 15. bxc3 {[%emt 0:00:04]} Be6 {[%emt 0:00:38]} 16. Rb1 {[%emt 0:00:05]} Bxd5 {[%emt 0:02:25]} 17. Bxd5 {[%emt 0:00:05]} Qc7 {[%emt 0:00:02]} 18. Bxf6 {[%emt 0:00:23]} Bxf6 {[%emt 0:00:07]} 19. Qf3 {[%emt 0:00:04]} 1-0

[Event "Wuerttemberg Rapid Teams 2024"]
[Site "B?blingen, Germany"]
[Date "2024.04.13"]
[Round "2.15"]
[White "Aksenov, Pavel"]
[Black "Degenhard, Simon"]
[Result "1-0"]
[ECO "B33"]
[WhiteElo "2045"]
[BlackElo "2204"]
[Annotator "RC"]
[PlyCount "95"]
[EventDate "2024.04.13"]
[EventType "team-tourn"]
[SourceTitle "playchess.com"]
[Source "ChessBase"]
[SourceQuality "1"]
[TimeControl "900+5"]

1. e4 {[%emt 0:00:02]} c5 {[%emt 0:00:02]} 2. Nf3 {[%emt 0:00:02]} Nc6 {[%emt 0:00:01]} 3. d4 {[%emt 0:00:00]} cxd4 {[%emt 0:00:02]} 4. Nxd4 {[%emt 0:00:01]} Nf6 {[%emt 0:00:02]} 5. Nc3 {[%emt 0:00:01]} e5 {[%emt 0:00:02]} 6. Ndb5 {[%emt 0:00:02]} d6 {[%emt 0:00:02]} 7. Bg5 {[%emt 0:00:01]} a6 {[%emt 0:00:02]} 8. Na3 {[%emt 0:00:01]} b5 {[%emt 0:00:01]} 9. Bxf6 {[%emt 0:00:02]} gxf6 {[%emt 0:00:02]} 10. Nd5 {[%emt 0:00:01]} Bg7 {[%emt 0:00:02]} 11. Bd3 {[%emt 0:00:02]} Ne7 {[%emt 0:00:06]} 12. Nxe7 {[%emt 0:00:03]} Qxe7 {[%emt 0:00:02]} 13. O-O {[%emt 0:00:03]} O-O {[%emt 0:00:36]} 14. c4 {[%emt 0:00:02]} f5 {[%emt 0:01:08]} 15. Qf3 {[%emt 0:00:03]} Rb8 {[%emt 0:00:46]} 16. Rfd1 {[%emt 0:00:32]} fxe4 {[%emt 0:00:30]} 17. Bxe4 {[%emt 0:01:10]} f5 {[%emt 0:01:05]} 18. Bd5+ {[%emt 0:00:06]} Be6 {[%emt 0:00:07]} 19. cxb5 {[%emt 0:00:50]} e4 {[%emt 0:00:17]} 20. Qb3 {[%emt 0:00:08]} Bxd5 {[%emt 0:01:23]} 21. Rxd5 {[%emt 0:00:14]} Kh8 {[%emt 0:00:40]} 22. Rad1 {[%emt 0:00:04]} Be5 {[%emt 0:00:19]} 23. Nc4 {[%emt 0:00:53]} Rxb5 {[%emt 0:03:07]} 24. Rxb5 {[%emt 0:00:10]} axb5 {[%emt 0:00:12]} 25. Qxb5 {[%emt 0:00:09]} Qc7 {[%emt 0:01:13]} 26. Qd5 {[%emt 0:01:46]} Rc8 {[%emt 0:01:27]} 27. b3 {[%emt 0:00:02]} Qc5 {[%emt 0:01:11]} 28. g3 {[%emt 0:00:07]} Qxd5 {[%emt 0:01:30]} 29. Rxd5 {[%emt 0:00:00]} Kg7 {[%emt 0:00:19]} 30. Nxe5 {[%emt 0:04:39]} dxe5 {[%emt 0:00:04]} 31. Rxe5 {[%emt 0:00:02]} Kf6 {[%emt 0:00:17]} 32. Ra5 {[%emt 0:00:02]} Rc1+ {[%emt 0:00:09]} 33. Kg2 {[%emt 0:00:01]} Rc2 {[%emt 0:00:05]} 34. Kf1 {[%emt 0:00:18]} Rb2 {[%emt 0:00:32]} 35. h4 {[%emt 0:00:53]} h5 {[%emt 0:00:05]} 36. Ra4 {[%emt 0:00:09]} Kg6 {[%emt 0:00:24]} 37. b4 {[%emt 0:00:06]} Kf6 {[%emt 0:00:02]} 38. a3 {[%emt 0:00:11]} Kg6 {[%emt 0:00:01]} 39. Ra6+ {[%emt 0:00:03]} Kg7 {[%emt 0:00:01]} 40. Ra5 {[%emt 0:00:20]} Kf6 {[%emt 0:00:03]} 41. b5 {[%emt 0:00:02]} Ke6 {[%emt 0:00:05]} 42. a4 {[%emt 0:00:03]} Kd6 {[%emt 0:00:06]} 43. Ra6+ {[%emt 0:00:03]} Kc5 {[%emt 0:00:01]} 44. Rf6 {[%emt 0:00:05]} Kb4 {[%emt 0:00:07]} 45. Rxf5 {[%emt 0:00:06]} Kxa4 {[%emt 0:00:14]} 46. Rxh5 {[%emt 0:00:02]} Ka5 {[%emt 0:00:15]} 47. Re5 {[%emt 0:00:02]} Kb6 {[%emt 0:00:06]} 48. h5 {[%emt 0:00:02]} 1-0

[Event "Wuerttemberg Rapid Teams 2024"]
[Site "B?blingen, Germany"]
[Date "2024.04.13"]
[Round "2.16"]
[White "Tschlatscher, Thomas"]
[Black "Siegle, Florian"]
[Result "1-0"]
[ECO "A01"]
[WhiteElo "2217"]
[BlackElo "1912"]
[Annotator "RC"]
[PlyCount "47"]
[EventDate "2024.04.13"]
[EventType "team-tourn"]
[SourceTitle "playchess.com"]
[Source "ChessBase"]
[SourceQuality "1"]
[TimeControl "900+5"]

1. b3 {[%emt 0:00:03]} e5 {[%emt 0:00:06]} 2. Bb2 {[%emt 0:00:03]} Nc6 {[%emt 0:00:07]} 3. e3 {[%emt 0:00:02]} Nf6 {[%emt 0:00:25]} 4. Bb5 {[%emt 0:00:04]} d6 {[%emt 0:00:08]} 5. d4 {[%emt 0:00:06]} exd4 {[%emt 0:01:26]} 6. Qxd4 {[%emt 0:00:04]} Bd7 {[%emt 0:00:08]} 7. Bxc6 {[%emt 0:00:02]} Bxc6 {[%emt 0:00:03]} 8. Nf3 {[%emt 0:00:03]} Be7 {[%emt 0:00:42]} 9. Nc3 {[%emt 0:00:03]} O-O {[%emt 0:01:12]} 10. O-O-O {[%emt 0:00:03]} a5 {[%emt 0:00:55]} 11. a4 {[%emt 0:00:15]} Ne8 {[%emt 0:00:38]} 12. Nd5 {[%emt 0:00:17]} Bxd5 {[%emt 0:00:10]} 13. Qxd5 {[%emt 0:00:03]} c6 {[%emt 0:00:18]} 14. Qf5 {[%emt 0:02:18]} g6 {[%emt 0:01:33]} 15. Qf4 {[%emt 0:00:58]} b5 {[%emt 0:00:25]} 16. Ne5 {[%emt 0:02:23]} Qc7 {[%emt 0:01:39]} 17. Ng4 {[%emt 0:00:06]} f6 {[%emt 0:01:34]} 18. h4 {[%emt 0:00:36]} d5 {[%emt 0:00:27]} 19. Qh6 {[%emt 0:00:53]} bxa4 {[%emt 0:00:46]} 20. h5 {[%emt 0:00:05]} g5 {[%emt 0:00:26]} 21. Qxg5+ {[%emt 0:00:03]} Kf7 {[%emt 0:00:45]} 22. Nh6+ {[%emt 0:00:13]} Ke6 {[%emt 0:00:00]} 23. Qf5+ {[%emt 0:00:40]} Kd6 {[%emt 0:00:03]} 24. Ba3+ {[%emt 0:00:02]} 1-0

[Event "Wuerttemberg Rapid Teams 2024"]
[Site "B?blingen, Germany"]
[Date "2024.04.13"]
[Round "2.17"]
[White "Fischer, Andre"]
[Black "Belica, Matej"]
[Result "1/2-1/2"]
[ECO "A06"]
[WhiteElo "2248"]
[BlackElo "2173"]
[Annotator "RC"]
[PlyCount "24"]
[EventDate "2024.04.13"]
[EventType "team-tourn"]
[SourceTitle "playchess.com"]
[Source "ChessBase"]
[SourceQuality "1"]
[TimeControl "900+5"]

1. Nf3 {[%emt 0:00:02]} c5 {[%emt 0:00:01]} 2. b3 {[%emt 0:00:03]} Nc6 {[%emt 0:00:04]} 3. Bb2 {[%emt 0:00:01]} d5 {[%emt 0:00:29]} 4. e3 {[%emt 0:00:02]} Bg4 {[%emt 0:00:40]} 5. Bb5 {[%emt 0:00:17]} Rc8 {[%emt 0:01:21]} 6. h3 {[%emt 0:00:02]} Bxf3 {[%emt 0:00:09]} 7. Qxf3 {[%emt 0:00:01]} a6 {[%emt 0:00:27]} 8. Bxc6+ {[%emt 0:00:19]} Rxc6 {[%emt 0:00:01]} 9. O-O {[%emt 0:00:11]} Nf6 {[%emt 0:00:31]} 10. d3 {[%emt 0:00:06]} Qd6 {[%emt 0:00:47]} 11. Nd2 {[%emt 0:00:21]} e5 {[%emt 0:01:27]} 12. Qg3 {[%emt 0:01:09]} Nd7 {[%emt 0:03:09]} 1/2-1/2

[Event "Wuerttemberg Rapid Teams 2024"]
[Site "B?blingen, Germany"]
[Date "2024.04.13"]
[Round "2.19"]
[White "Wunder, Niklas"]
[Black "Vrabac, Branko"]
[Result "0-1"]
[ECO "B27"]
[WhiteElo "2071"]
[BlackElo "1932"]
[Annotator "NA RC"]
[PlyCount "29"]
[EventDate "2024.04.13"]
[EventType "team-tourn"]
[SourceTitle "playchess.com"]
[Source "ChessBase"]
[SourceQuality "1"]
[TimeControl "900+5"]

1. e4 {[%emt 0:00:01]} g6 {[%emt 0:00:01]} 2. d4 {[%emt 0:00:04]} Bg7 {[%emt 0:00:01]} 3. Nf3 {[%emt 0:00:02]} c5 {[%emt 0:00:02]} 4. dxc5 {[%emt 0:00:18]} Qa5+ {[%emt 0:00:09]} 5. c3 {[%emt 0:00:34]} Qxc5 {[%emt 0:00:04]} 6. Be3 {[%emt 0:00:15]} Qc7 {[%emt 0:00:12]} 7. Bd3 {[%emt 0:01:24]} d6 {[%emt 0:00:36]} 8. O-O {[%emt 0:00:11]} Nf6 {[%emt 0:00:11]} 9. Na3 {[%emt 0:00:45]} Nc6 {[%emt 0:00:20]} 10. Nb5 {[%emt 0:00:21]} Qd8 {[%emt 0:00:10]} 11. a4 {[%emt 0:00:40]} O-O {[%emt 0:00:26]} 12. h3 {[%emt 0:00:10]} a6 {[%emt 0:01:04]} 13. Nbd4 {[%emt 0:00:21]} d5 {[%emt 0:00:44]} 14. e5 {[%emt 0:00:35]} Nd7 {[%emt 0:00:48]} 15. e6 {[%emt 0:00:51]} 0-1